{"text_format":"3","workbook":"xlsx","n_sheets":3,"sheets":["Bắt đầu","Ngân sách đại học hàng tháng","chart_calcs"],"not_rendered":{"charts":4,"defined_names":19},"read":"whole","date_system":"1900"}

{"sheet":"Bắt đầu","index":0,"n_rows":7,"n_cols":2,"rows_kept":7}
[null,"GIỚI THIỆU VỀ MẪU NÀY"]
[null,"Sử dụng trang tính ngân sách đại học hàng tháng để theo dõi thu nhập, chi phí và dòng tiền."]
[null,"Nhập thu nhập hàng tháng và chi phí để tính tổng thu nhập và chi phí."]
[null,"Dòng tiền sẽ được tự động tính toán và biểu đồ dòng tiền sẽ được cập nhật cho bạn."]
[null,"Chọn con trượt để nhận thu nhập, chi phí và biểu đồ dòng tiền cho một tháng và năm."]
[null,"Lưu ý: "]
[null,"Hướng dẫn bổ sung được cung cấp ở cột A trong trang tính. Văn bản này được cố ý ẩn đi. Để loại bỏ văn bản, chọn cột A, rồi chọn XÓA. Để bỏ ẩn văn bản, chọn cột A, rồi thay đổi màu phông chữ."]

{"sheet":"Ngân sách đại học hàng tháng","index":1,"n_rows":72,"n_cols":16,"rows_kept":72,"merged":[[5,1,14,3],[5,4,14,11],[5,12,13,15],[15,1,19,15],[20,1,21,15]]}
["Tạo ngân sách đại học hàng tháng trong sổ làm việc này. Tiêu đề của trang tính này nằm trong ô bên phải và ô B1. Hướng dẫn hữu ích về cách sử dụng trang tính này nằm ở các ô trong cột này. Hướng dẫn tiếp theo nằm trong ô A4.","Ngân sách đại học hàng tháng"]
[]
[]
["Nhãn Thu nhập nằm trong ô bên phải và nhãn Chi phí nằm trong ô E4 và nhãn Dòng tiền nằm trong ô M4.",{"$f":"chart_calcs!$D$6","v":"thu nhập năm:"},{"$nulls":4},{"$f":"chart_calcs!$D$7","v":"chi phí năm:"},{"$nulls":5},{"$f":"chart_calcs!$D$8","v":"dòng tiền năm:"}]
["Thu nhập sẽ tự động được cập nhật trong ô ở bên phải, chi phí nằm trong ô E5 và dòng tiền nằm trong ô M5.",{"$f":"\" \"&chart_calcs!$F$6","v":{"$error":"#VALUE!"}},{"$nulls":4},{"$f":"\" \"&chart_calcs!$F$7","v":{"$error":"#VALUE!"}},{"$nulls":5},{"$f":"\" \"&chart_calcs!$F$8","v":" 169.0 ₫"}]
["Biểu đồ vành khuyên hiển thị tóm tắt thu nhập trong ô bên phải, tóm tắt chi phí trong ô E6 và biểu đồ thanh hiển thị dòng tiền dương và âm trong ô M6 sẽ tự động được cập nhật. Hướng dẫn tiếp theo nằm trong ô A17.","Biểu đồ vành khuyên hiển thị tóm tắt thu nhập cho tháng hoặc năm đã chọn trong ô này.",null,null,"Biểu đồ vành khuyên hiển thị tóm tắt chi phí cho tháng hoặc năm đã chọn trong ô này.",{"$nulls":7},"Biểu đồ thanh hiển thị dòng tiền dương và âm cho tháng hoặc năm đã chọn trong ô này."]
{"$rows_empty":9}
[null,"Biểu đồ đường hiển thị dòng tiền cho tháng hoặc năm đã chọn trong ô này."]
["Biểu đồ đường dòng tiền nằm trong ô bên phải. Hướng dẫn tiếp theo nằm trong ô A21."]
[]
[]
[]
["Chọn con trượt ở bên phải để nhận các biểu đồ và dữ liệu về Thu nhập, Chi phí hàng tháng hoặc hàng năm. Hướng dẫn tiếp theo nằm trong ô A25.","Con trượt nằm trong ô này."]
[]
[]
[]
["Chọn Tháng trong ô bên phải. Nhấn ALT+MŨI TÊN XUỐNG để xem các tùy chọn, rồi nhấn MŨI TÊN XUỐNG và ENTER để chọn.","THÁNG HAI"]
["Khoảng thời gian đã chọn sẽ tự động được cập nhật trong ô P26.",{"$nulls":14},{"$f":"SelectedPeriod","v":{"$error":"#VALUE!"}}]
["Các nhãn đều nằm trong hàng này, nhãn Tiền mặt hàng tháng sau khi trừ chi phí nằm trong ô bên phải, tháng nằm trong các ô từ C27 đến N27, Năm nằm trong ô O27 và phần trăm tăng nằm trong ô P27.","Tiền mặt hàng tháng sau khi trừ chi phí",{"$f":"FirstMonth","v":{"$error":"#VALUE!"}},{"$f":"NextMonth","v":{"$error":"#VALUE!"}},{"$error":"#VALUE!"},{"$error":"#VALUE!"},{"$error":"#VALUE!"},{"$error":"#VALUE!"},{"$error":"#VALUE!"},{"$error":"#VALUE!"},{"$error":"#VALUE!"},{"$error":"#VALUE!"},{"$error":"#VALUE!"},{"$error":"#VALUE!"},"NĂM  ","% INC "]
["Nhãn Dòng tiền nằm trong ô ở bên phải. Dòng tiền cho mỗi tháng sẽ được tự động tính toán trong các ô từ C28 tới N28, số tiền hàng năm nằm trong ô O28 và phần trăm tăng nằm trong ô P28. Biểu đồ thu nhỏ được tự động cập nhật trong ô Q28.","Dòng tiền",{"$f":"C37-C72","v":169},69,192,199,204,{"v":-771,"d":"-771 "},124,154,{"v":-721,"d":"-721 "},109,34,{"v":-61,"d":"-61 "},{"$f":"SUM(C28:N28)","v":{"v":-299,"d":"-299 "}},{"$f":"INDEX($C28:$O28,,SelectedPeriodColumn)/INDEX($C$37:$O$37,,SelectedPeriodColumn)","v":{"$error":"#VALUE!"}}]
["Nhãn Dòng tiền tích lũy nằm trong ô ở bên phải. Dòng tiền tích lũy cho mỗi tháng sẽ được tự động tính toán trong các ô từ C29 tới N29, số tiền hàng năm nằm trong ô O29 và phần trăm tăng nằm trong ô P29. Biểu đồ thu nhỏ được cập nhật tự động trong ô Q29. Hướng dẫn tiếp theo nằm trong ô A31.","Dòng tiền tích lũy",{"$f":"SUM($C$28:C$28)","v":169},{"$f":"SUM($C$28:D$28)","v":238},{"$f":"SUM($C$28:E$28)","v":430},{"$f":"SUM($C$28:F$28)","v":629},{"$f":"SUM($C$28:G$28)","v":833},{"$f":"SUM($C$28:H$28)","v":62},{"$f":"SUM($C$28:I$28)","v":186},{"$f":"SUM($C$28:J$28)","v":340},{"$f":"SUM($C$28:K$28)","v":{"v":-381,"d":"-381 "}},{"$f":"SUM($C$28:L$28)","v":{"v":-272,"d":"-272 "}},{"$f":"SUM($C$28:M$28)","v":{"v":-238,"d":"-238 "}},{"$f":"SUM($C$28:N$28)","v":{"v":-299,"d":"-299 "}}]
[]
["Nhãn thu nhập hàng tháng nằm trong ô bên phải, tháng trong các ô từ C31 đến N31, Năm nằm trong ô O31 và nhãn phần trăm tăng nằm trong ô P31. Nhập các mục thu nhập hàng tháng trong các ô từ B32đến B36 và số tiền hàng tháng trong các ô từ C32 đến N36. Thu nhập hàng năm sẽ được tự động tính toán trong các ô từ O32 tới O36 và phần trăm tăng nằm trong các ô từ P32 đến P36. Hướng dẫn tiếp theo nằm trong ô A37.","THU NHẬP HÀNG THÁNG",{"$f":"FirstMonth","v":{"$error":"#VALUE!"}},{"$f":"NextMonth","v":{"$error":"#VALUE!"}},{"$error":"#VALUE!"},{"$error":"#VALUE!"},{"$error":"#VALUE!"},{"$error":"#VALUE!"},{"$error":"#VALUE!"},{"$error":"#VALUE!"},{"$error":"#VALUE!"},{"$error":"#VALUE!"},{"$error":"#VALUE!"},{"$error":"#VALUE!"},"NĂM  ","% INC "]
[null,"Hỗ trợ tài chính (tài trợ, học bổng, cho vay) trả cho bạn",0,0,750,750,750,750,750,750,750,750,750,750,{"$f":"SUM(C32:N32)","v":7500},{"$f":"INDEX($C32:$O32,,SelectedPeriodColumn)/INDEX($C$37:$O$37,,SelectedPeriodColumn)","v":{"$error":"#VALUE!"}}]
[null,"Tiền lương sau thuế từ một công việc",450,450,450,450,450,450,450,450,550,350,350,350,5200,{"$f":"INDEX($C33:$O33,,SelectedPeriodColumn)/INDEX($C$37:$O$37,,SelectedPeriodColumn)","v":{"$error":"#VALUE!"}}]
[null,"Trợ giúp tài chính từ gia đình",200,200,{"v":1000,"d":"1,000"},350,350,350,350,350,350,350,350,350,4550,{"$f":"INDEX($C34:$O34,,SelectedPeriodColumn)/INDEX($C$37:$O$37,,SelectedPeriodColumn)","v":{"$error":"#VALUE!"}}]
[null,"Tiền rút từ tài khoản tiết kiệm",500,350,150,0,0,0,0,0,0,0,0,0,1000,{"$f":"INDEX($C35:$O35,,SelectedPeriodColumn)/INDEX($C$37:$O$37,,SelectedPeriodColumn)","v":{"$error":"#VALUE!"}}]
[null,"Khác (hỗ trợ trẻ em, hỗ trợ công cộng, quà tặng, vv)",75,75,75,75,75,75,75,75,75,75,75,75,900,{"$f":"INDEX($C36:$O36,,SelectedPeriodColumn)/INDEX($C$37:$O$37,,SelectedPeriodColumn)","v":{"$error":"#VALUE!"}}]
["Nhãn Tổng thu nhập nằm trong ô bên phải. Tổng thu nhập cho mỗi tháng sẽ được tự động tính toán trong các ô từ C37 tới N37, thu nhập hàng năm nằm trong ô O37 và phần trăm tăng nằm trong ô P37. Biểu đồ thu nhỏ được tự động cập nhật trong ô Q37. Hướng dẫn tiếp theo nằm trong ô A39.","TỔNG THU NHẬP",{"$f":"SUM(C32:C36)","v":1225},1075,2425,1625,1625,1625,1625,1625,1725,1525,1525,1525,19150,{"$f":"INDEX($C37:$O37,,SelectedPeriodColumn)/INDEX($C$37:$O$37,,SelectedPeriodColumn)","v":{"$error":"#VALUE!"}}]
[]
["Nhãn chi phí hàng tháng nằm trong ô bên phải, tháng trong các ô từ C39 đến N39, Năm nằm trong ô O39 và nhãn phần trăm tăng nằm trong ô P39.","CHI PHÍ HÀNG THÁNG",{"$f":"FirstMonth","v":{"$error":"#VALUE!"}},{"$f":"NextMonth","v":{"$error":"#VALUE!"}},{"$error":"#VALUE!"},{"$error":"#VALUE!"},{"$error":"#VALUE!"},{"$error":"#VALUE!"},{"$error":"#VALUE!"},{"$error":"#VALUE!"},{"$error":"#VALUE!"},{"$error":"#VALUE!"},{"$error":"#VALUE!"},{"$error":"#VALUE!"},"NĂM  ","% INC "]
["Nhập hoặc sửa đổi các mục chi phí trong ô ở bên phải và số tiền hàng tháng nằm trong các ô từ C40 đến N43. Số tiền hàng năm sẽ được tự động tính toán trong các ô từ O40 tới O43 và phần trăm tăng nằm trong các ô từ P40 đến P43. Biểu đồ thu nhỏ được tự động cập nhật trong ô Q40. Hướng dẫn tiếp theo nằm trong ô A45.","Phòng & bảng thảo luận",{"$f":"SUM(C41:C43)","v":565},565,565,565,565,565,565,565,565,565,565,565,{"$f":"SUM(C40:N40)","v":{"v":6780,"d":"6,780"}},{"$f":"INDEX($C40:$O40,,SelectedPeriodColumn)/INDEX($C$72:$O$72,,SelectedPeriodColumn)","v":{"$error":"#VALUE!"}}]
[null,null,315,315,315,315,315,315,315,315,315,315,315,315,{"$f":"SUM(C41:N41)","v":{"v":3780,"d":"3,780"}},{"$f":"INDEX($C41:$O41,,SelectedPeriodColumn)/INDEX($C$72:$O$72,,SelectedPeriodColumn)","v":{"$error":"#VALUE!"}}]
[null,null,200,200,200,200,200,200,200,200,200,200,200,200,{"$f":"SUM(C42:N42)","v":{"v":2400,"d":"2,400"}},{"$f":"INDEX($C42:$O42,,SelectedPeriodColumn)/INDEX($C$72:$O$72,,SelectedPeriodColumn)","v":{"$error":"#VALUE!"}}]
[null,null,50,50,50,50,50,50,50,50,50,50,50,50,{"$f":"SUM(C43:N43)","v":600},{"$f":"INDEX($C43:$O43,,SelectedPeriodColumn)/INDEX($C$72:$O$72,,SelectedPeriodColumn)","v":{"$error":"#VALUE!"}}]
[]
["Nhập hoặc sửa đổi các mục chi phí trong ô ở bên phải và số tiền hàng tháng nằm trong các ô từ C46 đến N48. Số tiền hàng năm sẽ được tự động tính toán trong các ô từ O46 tới O48 và phần trăm tăng nằm trong các ô từ P46 đến P48. Biểu đồ thu nhỏ được tự động cập nhật trong ô Q46. Hướng dẫn tiếp theo nằm trong ô A50.","Học phí & phí",{"$f":"SUM(C46:C47)","v":0},0,750,0,0,650,0,0,650,0,0,0,{"$f":"SUM(C45:N45)","v":{"v":2050,"d":"2,050"}},{"$f":"INDEX($C45:$O45,,SelectedPeriodColumn)/INDEX($C$72:$O$72,,SelectedPeriodColumn)","v":{"$error":"#VALUE!"}}]
[null,null,0,0,500,0,0,500,0,0,500,0,0,0,{"$f":"SUM(C46:N46)","v":{"v":1500,"d":"1,500"}},{"$f":"INDEX($C46:$O46,,SelectedPeriodColumn)/INDEX($C$72:$O$72,,SelectedPeriodColumn)","v":{"$error":"#VALUE!"}}]
[null,null,0,0,250,0,0,150,0,0,150,0,0,0,{"$f":"SUM(C47:N47)","v":550},{"$f":"INDEX($C47:$O47,,SelectedPeriodColumn)/INDEX($C$72:$O$72,,SelectedPeriodColumn)","v":{"$error":"#VALUE!"}}]
[]
["Nhập hoặc sửa đổi các mục chi phí trong ô ở bên phải và số tiền hàng tháng nằm trong các ô từ C49 đến N51. Số tiền hàng năm sẽ được tự động tính toán trong các ô từ O49 tới O51 và phần trăm tăng nằm trong các ô từ P49 đến P51. Biểu đồ thu nhỏ được tự động cập nhật trong ô Q49. Hướng dẫn tiếp theo nằm trong ô A53.","Sách & dụng cụ học tập",{"$f":"SUM(C50:C51)","v":0},0,325,20,20,325,10,10,400,15,15,15,{"$f":"SUM(C49:N49)","v":{"v":1155,"d":"1,155"}},{"$f":"INDEX($C49:$O49,,SelectedPeriodColumn)/INDEX($C$72:$O$72,,SelectedPeriodColumn)","v":{"$error":"#VALUE!"}}]
[null,null,0,0,225,0,0,275,0,0,325,0,0,0,{"$f":"SUM(C50:N50)","v":825},{"$f":"INDEX($C50:$O50,,SelectedPeriodColumn)/INDEX($C$72:$O$72,,SelectedPeriodColumn)","v":{"$error":"#VALUE!"}}]
[null,null,0,0,100,20,20,50,10,10,75,15,15,15,{"$f":"SUM(C51:N51)","v":330},{"$f":"INDEX($C51:$O51,,SelectedPeriodColumn)/INDEX($C$72:$O$72,,SelectedPeriodColumn)","v":{"$error":"#VALUE!"}}]
[]
["Nhập hoặc sửa đổi các mục chi phí trong ô ở bên phải và số tiền hàng tháng nằm trong các ô từ C53 đến N57. Số tiền hàng năm sẽ được tự động tính toán trong các ô từ O53 tới O57 và phần trăm tăng nằm trong các ô từ P53 đến P57. Biểu đồ thu nhỏ được tự động cập nhật trong ô Q53. Hướng dẫn tiếp theo nằm trong ô A59.","Đi lại",{"$f":"SUM(C54:C57)","v":224},174,174,219,174,174,274,219,174,174,224,269,{"$f":"SUM(C53:N53)","v":{"v":2473,"d":"2,473"}},{"$f":"INDEX($C53:$O53,,SelectedPeriodColumn)/INDEX($C$72:$O$72,,SelectedPeriodColumn)","v":{"$error":"#VALUE!"}}]
[null,null,30,30,30,75,30,30,30,75,30,30,30,75,{"$f":"SUM(C54:N54)","v":495},{"$f":"INDEX($C54:$O54,,SelectedPeriodColumn)/INDEX($C$72:$O$72,,SelectedPeriodColumn)","v":{"$error":"#VALUE!"}}]
[null,null,129,129,129,129,129,129,129,129,129,129,129,129,{"$f":"SUM(C55:N55)","v":{"v":1548,"d":"1,548"}},{"$f":"INDEX($C55:$O55,,SelectedPeriodColumn)/INDEX($C$72:$O$72,,SelectedPeriodColumn)","v":{"$error":"#VALUE!"}}]
[null,null,15,15,15,15,15,15,15,15,15,15,15,15,{"$f":"SUM(C56:N56)","v":180},{"$f":"INDEX($C56:$O56,,SelectedPeriodColumn)/INDEX($C$72:$O$72,,SelectedPeriodColumn)","v":{"$error":"#VALUE!"}}]
[null,null,50,0,0,0,0,0,100,0,0,0,50,50,{"$f":"SUM(C57:N57)","v":250},{"$f":"INDEX($C57:$O57,,SelectedPeriodColumn)/INDEX($C$72:$O$72,,SelectedPeriodColumn)","v":{"$error":"#VALUE!"}}]
[]
["Nhập hoặc sửa đổi các mục chi phí trong ô ở bên phải và số tiền hàng tháng nằm trong các ô từ C59 đến N65. Số tiền hàng năm sẽ được tự động tính toán trong các ô từ O59 tới O66 và phần trăm tăng nằm trong các ô từ P59 đến P65. Biểu đồ thu nhỏ được tự động cập nhật trong ô Q59. Hướng dẫn tiếp theo nằm trong ô A67.","Tự do",{"$f":"SUM(C60:C65)","v":69},69,169,369,419,444,419,419,394,394,419,469,{"$f":"SUM(C59:N59)","v":{"v":4053,"d":"4,053"}},{"$f":"INDEX($C59:$O59,,SelectedPeriodColumn)/INDEX($C$72:$O$72,,SelectedPeriodColumn)","v":{"$error":"#VALUE!"}}]
[null,null,0,0,0,50,100,100,100,100,75,75,100,100,800,{"$f":"INDEX($C60:$O60,,SelectedPeriodColumn)/INDEX($C$72:$O$72,,SelectedPeriodColumn)","v":{"$error":"#VALUE!"}}]
[null,null,69,69,69,69,69,69,69,69,69,69,69,69,828,{"$f":"INDEX($C61:$O61,,SelectedPeriodColumn)/INDEX($C$72:$O$72,,SelectedPeriodColumn)","v":{"$error":"#VALUE!"}}]
[null,null,0,0,0,0,0,25,0,0,0,0,0,50,75,{"$f":"INDEX($C62:$O62,,SelectedPeriodColumn)/INDEX($C$72:$O$72,,SelectedPeriodColumn)","v":{"$error":"#VALUE!"}}]
[null,null,0,0,100,100,100,100,100,100,100,100,100,100,{"v":1000,"d":"1,000"},{"$f":"INDEX($C63:$O63,,SelectedPeriodColumn)/INDEX($C$72:$O$72,,SelectedPeriodColumn)","v":{"$error":"#VALUE!"}}]
[null,null,0,0,0,50,50,50,50,50,50,50,50,50,450,{"$f":"INDEX($C64:$O64,,SelectedPeriodColumn)/INDEX($C$72:$O$72,,SelectedPeriodColumn)","v":{"$error":"#VALUE!"}}]
[null,null,0,0,0,100,100,100,100,100,100,100,100,100,900,{"$f":"INDEX($C65:$O65,,SelectedPeriodColumn)/INDEX($C$72:$O$72,,SelectedPeriodColumn)","v":{"$error":"#VALUE!"}}]
[]
["Nhập hoặc sửa đổi các mục chi phí trong ô ở bên phải và số tiền hàng tháng nằm trong các ô từ C67 đến N70. Số tiền hàng năm sẽ được tự động tính toán trong các ô từ O67 tới O70 và phần trăm tăng nằm trong các ô từ P67 đến P70. Biểu đồ thu nhỏ được tự động cập nhật trong ô Q67. Hướng dẫn tiếp theo nằm trong ô A72.","Chi phí khác",{"$f":"SUM(C68:C70)","v":198},{"$f":"SUM(D68:D70)","v":198},250,253,243,238,233,258,263,268,268,268,{"$f":"SUM(C67:N67)","v":{"v":2938,"d":"2,938"}},{"$f":"INDEX($C67:$O67,,SelectedPeriodColumn)/INDEX($C$72:$O$72,,SelectedPeriodColumn)","v":{"$error":"#VALUE!"}}]
[null,null,123,123,123,123,123,123,123,123,123,123,123,123,{"$f":"SUM(C68:N68)","v":{"v":1476,"d":"1,476"}},{"$f":"INDEX($C68:$O68,,SelectedPeriodColumn)/INDEX($C$72:$O$72,,SelectedPeriodColumn)","v":{"$error":"#VALUE!"}}]
[null,null,0,0,52,55,45,40,35,60,65,70,70,70,{"$f":"SUM(C69:N69)","v":562},{"$f":"INDEX($C69:$O69,,SelectedPeriodColumn)/INDEX($C$72:$O$72,,SelectedPeriodColumn)","v":{"$error":"#VALUE!"}}]
[null,null,75,75,75,75,75,75,75,75,75,75,75,75,{"$f":"SUM(C70:N70)","v":900},{"$f":"INDEX($C70:$O70,,SelectedPeriodColumn)/INDEX($C$72:$O$72,,SelectedPeriodColumn)","v":{"$error":"#VALUE!"}}]
[]
["Nhãn Tổng chi phí nằm trong ô bên phải. Tổng chi phí mỗi tháng sẽ được tự động tính toán trong các ô từ C72 đến N72, chi phí hàng năm nằm trong ô O72 và phần trăm tăng nằm trong ô P72. Biểu đồ thu nhỏ được tự động cập nhật trong ô Q72.","TỔNG CHI PHÍ",{"$f":"SUM(C40,C45,C49,C53,C59,C67)","v":{"v":1056,"d":"1,056"}},{"v":1006,"d":"1,006"},{"v":2233,"d":"2,233"},{"v":1426,"d":"1,426"},{"v":1421,"d":"1,421"},{"v":2396,"d":"2,396"},{"v":1501,"d":"1,501"},{"v":1471,"d":"1,471"},{"v":2446,"d":"2,446"},{"v":1416,"d":"1,416"},{"v":1491,"d":"1,491"},{"v":1586,"d":"1,586"},{"$f":"SUM(C72:N72)","v":{"v":19449,"d":"19,449"}},{"$f":"INDEX($C72:$O72,,SelectedPeriodColumn)/INDEX($C$72:$O$72,,SelectedPeriodColumn)","v":{"$error":"#VALUE!"}}]

{"sheet":"chart_calcs","index":2,"n_rows":23,"n_cols":16,"rows_kept":23,"hidden":true}
["***Trang tính này sẽ vẫn bị ẨN***"]
[]
[{"$nulls":3},{"$f":"IFERROR(LOWER(TEXT(VALUE(\"1\"&SelectedPeriod&YEAR(TODAY())),\"mmmm\")),\"năm\")","v":"năm"}]
[]
[{"$nulls":3},"Tiêu đề Biểu đồ động"]
[{"$nulls":3},{"$f":"\"thu nhập \"&D3&\":\"","v":"thu nhập năm:"},null,{"$f":"TEXT(INDEX('Ngân sách đại học hàng tháng'!$C$37:$O$37,,SelectedPeriodColumn),\"#.##0 ₫\")","v":{"$error":"#VALUE!"}}]
[{"$nulls":3},{"$f":"\"chi phí \"&D3&\":\"","v":"chi phí năm:"},null,{"$f":"TEXT(INDEX('Ngân sách đại học hàng tháng'!$C$72:$O$72,,SelectedPeriodColumn),\"#.##0 ₫\")","v":{"$error":"#VALUE!"}}]
[{"$nulls":3},{"$f":"\"dòng tiền \"&D3&\":\"","v":"dòng tiền năm:"},{"$f":"INDEX('Ngân sách đại học hàng tháng'!C28:O28,ScrollBarValue)","v":169},{"$f":"TEXT(E8,\"#.##0 ₫\")","v":"169.0 ₫"}]
[]
[]
[]
[{"$nulls":3},{"$f":"LOWER('Ngân sách đại học hàng tháng'!C27)","v":{"$error":"#VALUE!"}},{"$f":"LOWER('Ngân sách đại học hàng tháng'!D27)","v":{"$error":"#VALUE!"}},{"$f":"LOWER('Ngân sách đại học hàng tháng'!E27)","v":{"$error":"#VALUE!"}},{"$f":"LOWER('Ngân sách đại học hàng tháng'!F27)","v":{"$error":"#VALUE!"}},{"$f":"LOWER('Ngân sách đại học hàng tháng'!G27)","v":{"$error":"#VALUE!"}},{"$f":"LOWER('Ngân sách đại học hàng tháng'!H27)","v":{"$error":"#VALUE!"}},{"$f":"LOWER('Ngân sách đại học hàng tháng'!I27)","v":{"$error":"#VALUE!"}},{"$f":"LOWER('Ngân sách đại học hàng tháng'!J27)","v":{"$error":"#VALUE!"}},{"$f":"LOWER('Ngân sách đại học hàng tháng'!K27)","v":{"$error":"#VALUE!"}},{"$f":"LOWER('Ngân sách đại học hàng tháng'!L27)","v":{"$error":"#VALUE!"}},{"$f":"LOWER('Ngân sách đại học hàng tháng'!M27)","v":{"$error":"#VALUE!"}},{"$f":"LOWER('Ngân sách đại học hàng tháng'!N27)","v":{"$error":"#VALUE!"}},{"$f":"LOWER('Ngân sách đại học hàng tháng'!O27)","v":"năm  "}]
[null,null,"Giá trị thanh cuộn: ",1]
[null,null,"Biểu đồ dòng tiền: ",{"$f":"IF(SelectedPeriod='Ngân sách đại học hàng tháng'!C$31,IF('Ngân sách đại học hàng tháng'!$C$28:$O$28>=0,'Ngân sách đại học hàng tháng'!$C$28:$O$28,NA()),NA())","v":{"$error":"#VALUE!"}},{"$f":"IF(SelectedPeriod='Ngân sách đại học hàng tháng'!D$31,IF('Ngân sách đại học hàng tháng'!$C$28:$O$28>=0,'Ngân sách đại học hàng tháng'!$C$28:$O$28,NA()),NA())","v":{"$error":"#VALUE!"}},{"$f":"IF(SelectedPeriod='Ngân sách đại học hàng tháng'!E$31,IF('Ngân sách đại học hàng tháng'!$C$28:$O$28>=0,'Ngân sách đại học hàng tháng'!$C$28:$O$28,NA()),NA())","v":{"$error":"#VALUE!"}},{"$f":"IF(SelectedPeriod='Ngân sách đại học hàng tháng'!F$31,IF('Ngân sách đại học hàng tháng'!$C$28:$O$28>=0,'Ngân sách đại học hàng tháng'!$C$28:$O$28,NA()),NA())","v":{"$error":"#VALUE!"}},{"$f":"IF(SelectedPeriod='Ngân sách đại học hàng tháng'!G$31,IF('Ngân sách đại học hàng tháng'!$C$28:$O$28>=0,'Ngân sách đại học hàng tháng'!$C$28:$O$28,NA()),NA())","v":{"$error":"#VALUE!"}},{"$f":"IF(SelectedPeriod='Ngân sách đại học hàng tháng'!H$31,IF('Ngân sách đại học hàng tháng'!$C$28:$O$28>=0,'Ngân sách đại học hàng tháng'!$C$28:$O$28,NA()),NA())","v":{"$error":"#VALUE!"}},{"$f":"IF(SelectedPeriod='Ngân sách đại học hàng tháng'!I$31,IF('Ngân sách đại học hàng tháng'!$C$28:$O$28>=0,'Ngân sách đại học hàng tháng'!$C$28:$O$28,NA()),NA())","v":{"$error":"#VALUE!"}},{"$f":"IF(SelectedPeriod='Ngân sách đại học hàng tháng'!J$31,IF('Ngân sách đại học hàng tháng'!$C$28:$O$28>=0,'Ngân sách đại học hàng tháng'!$C$28:$O$28,NA()),NA())","v":{"$error":"#VALUE!"}},{"$f":"IF(SelectedPeriod='Ngân sách đại học hàng tháng'!K$31,IF('Ngân sách đại học hàng tháng'!$C$28:$O$28>=0,'Ngân sách đại học hàng tháng'!$C$28:$O$28,NA()),NA())","v":{"$error":"#VALUE!"}},{"$f":"IF(SelectedPeriod='Ngân sách đại học hàng tháng'!L$31,IF('Ngân sách đại học hàng tháng'!$C$28:$O$28>=0,'Ngân sách đại học hàng tháng'!$C$28:$O$28,NA()),NA())","v":{"$error":"#VALUE!"}},{"$f":"IF(SelectedPeriod='Ngân sách đại học hàng tháng'!M$31,IF('Ngân sách đại học hàng tháng'!$C$28:$O$28>=0,'Ngân sách đại học hàng tháng'!$C$28:$O$28,NA()),NA())","v":{"$error":"#VALUE!"}},{"$f":"IF(SelectedPeriod='Ngân sách đại học hàng tháng'!N$31,IF('Ngân sách đại học hàng tháng'!$C$28:$O$28>=0,'Ngân sách đại học hàng tháng'!$C$28:$O$28,NA()),NA())","v":{"$error":"#VALUE!"}},{"$f":"IF(SelectedPeriod='Ngân sách đại học hàng tháng'!O$31,IF('Ngân sách đại học hàng tháng'!$C$28:$O$28>=0,'Ngân sách đại học hàng tháng'!$C$28:$O$28,NA()),NA())","v":{"$error":"#VALUE!"}}]
[null,null,"Tích lũy: ",{"$f":"IF(SelectedPeriod='Ngân sách đại học hàng tháng'!C$31,IF('Ngân sách đại học hàng tháng'!$C$28:$O$28<0,'Ngân sách đại học hàng tháng'!$C$28:$O$28,NA()),NA())","v":{"$error":"#VALUE!"}},{"$f":"IF(SelectedPeriod='Ngân sách đại học hàng tháng'!D$31,IF('Ngân sách đại học hàng tháng'!$C$28:$O$28<0,'Ngân sách đại học hàng tháng'!$C$28:$O$28,NA()),NA())","v":{"$error":"#VALUE!"}},{"$f":"IF(SelectedPeriod='Ngân sách đại học hàng tháng'!E$31,IF('Ngân sách đại học hàng tháng'!$C$28:$O$28<0,'Ngân sách đại học hàng tháng'!$C$28:$O$28,NA()),NA())","v":{"$error":"#VALUE!"}},{"$f":"IF(SelectedPeriod='Ngân sách đại học hàng tháng'!F$31,IF('Ngân sách đại học hàng tháng'!$C$28:$O$28<0,'Ngân sách đại học hàng tháng'!$C$28:$O$28,NA()),NA())","v":{"$error":"#VALUE!"}},{"$f":"IF(SelectedPeriod='Ngân sách đại học hàng tháng'!G$31,IF('Ngân sách đại học hàng tháng'!$C$28:$O$28<0,'Ngân sách đại học hàng tháng'!$C$28:$O$28,NA()),NA())","v":{"$error":"#VALUE!"}},{"$f":"IF(SelectedPeriod='Ngân sách đại học hàng tháng'!H$31,IF('Ngân sách đại học hàng tháng'!$C$28:$O$28<0,'Ngân sách đại học hàng tháng'!$C$28:$O$28,NA()),NA())","v":{"$error":"#VALUE!"}},{"$f":"IF(SelectedPeriod='Ngân sách đại học hàng tháng'!I$31,IF('Ngân sách đại học hàng tháng'!$C$28:$O$28<0,'Ngân sách đại học hàng tháng'!$C$28:$O$28,NA()),NA())","v":{"$error":"#VALUE!"}},{"$f":"IF(SelectedPeriod='Ngân sách đại học hàng tháng'!J$31,IF('Ngân sách đại học hàng tháng'!$C$28:$O$28<0,'Ngân sách đại học hàng tháng'!$C$28:$O$28,NA()),NA())","v":{"$error":"#VALUE!"}},{"$f":"IF(SelectedPeriod='Ngân sách đại học hàng tháng'!K$31,IF('Ngân sách đại học hàng tháng'!$C$28:$O$28<0,'Ngân sách đại học hàng tháng'!$C$28:$O$28,NA()),NA())","v":{"$error":"#VALUE!"}},{"$f":"IF(SelectedPeriod='Ngân sách đại học hàng tháng'!L$31,IF('Ngân sách đại học hàng tháng'!$C$28:$O$28<0,'Ngân sách đại học hàng tháng'!$C$28:$O$28,NA()),NA())","v":{"$error":"#VALUE!"}},{"$f":"IF(SelectedPeriod='Ngân sách đại học hàng tháng'!M$31,IF('Ngân sách đại học hàng tháng'!$C$28:$O$28<0,'Ngân sách đại học hàng tháng'!$C$28:$O$28,NA()),NA())","v":{"$error":"#VALUE!"}},{"$f":"IF(SelectedPeriod='Ngân sách đại học hàng tháng'!N$31,IF('Ngân sách đại học hàng tháng'!$C$28:$O$28<0,'Ngân sách đại học hàng tháng'!$C$28:$O$28,NA()),NA())","v":{"$error":"#VALUE!"}},{"$f":"IF(SelectedPeriod='Ngân sách đại học hàng tháng'!O$31,IF('Ngân sách đại học hàng tháng'!$C$28:$O$28<0,'Ngân sách đại học hàng tháng'!$C$28:$O$28,NA()),NA())","v":{"$error":"#VALUE!"}}]
[]
[]
[null,null,"DỮ LIỆU DỮ LIỆU THU NHẬP"]
[null,null,"Hỗ trợ tài chính (tài trợ, học bổng, cho vay) trả cho bạn",{"$f":"'Ngân sách đại học hàng tháng'!P32","v":{"$error":"#VALUE!"}}]
[null,null,"Tiền lương sau thuế từ một công việc",{"$f":"'Ngân sách đại học hàng tháng'!P33","v":{"$error":"#VALUE!"}}]
[null,null,"Trợ giúp tài chính từ gia đình",{"$f":"'Ngân sách đại học hàng tháng'!P34","v":{"$error":"#VALUE!"}}]
[null,null,"Tiền rút từ tài khoản tiết kiệm",{"$f":"'Ngân sách đại học hàng tháng'!P35","v":{"$error":"#VALUE!"}}]
[null,null,"Khác (hỗ trợ trẻ em, hỗ trợ công cộng, quà tặng, vv)",{"$f":"'Ngân sách đại học hàng tháng'!P36","v":{"$error":"#VALUE!"}}]